bitfinex-derivatives/quotes_SOLF0:USTF0_20251020
["timestamp","ask_amount","ask_price","bid_price","bid_amount"]
[1760970085025,7.86938137,191.25,191.11,0.66]
[1760970085426,7.86938137,191.25,191.16,5.3677]
[1760970086133,2.86,191.24,191.16,5.3677]
[1760970087533,2.86,191.24,191.16,0.66]
[1760970091636,4.7066,191.22,191.16,0.66]
[1760970092030,2.86,191.24,191.16,0.66]
[1760970092331,4.7071,191.2,191.16,0.66]
[1760970092837,4.7073,191.19,191.16,0.66]
[1760970093729,4.7077,191.18,191.16,0.66]
[1760970094837,4.7084,191.15,191.07,4.71]
[1760970095752,5.00938137,191.17,191.0,135.5]
[1760970096040,5.00938137,191.13,191.0,135.5]
[1760970096739,4.7094,191.11,191.0,135.5]
[1760970096940,5.00938137,191.13,191.0,135.5]
[1760970097443,4.7094,191.11,191.02,4.7112]
[1760970097737,5.00938137,191.13,191.02,4.7112]
[1760970098443,4.7094,191.11,191.02,4.7112]
[1760970098643,5.00938137,191.13,191.0,135.5]
[1760970099442,4.7101,191.07,191.0,135.5]
[1760970099645,5.00938137,191.13,190.99,4.7119]
[1760970100641,5.00938137,191.13,190.97,4.7125]
[1760970101843,4.7102,191.07,190.98,4.7121]
[1760970102140,5.00938137,191.14,190.96,5.00938137]
[1760970102344,5.00938137,191.14,190.96,46.30938137]
[1760970102843,4.7096,191.09,191.01,4.7116]
[1760970104346,5.00938137,191.14,190.95,49.34882]
[1760970104347,4.7091,191.11,190.99,5.00938137]
[1760970106044,4.7091,191.11,191.03,4.7109]
[1760970107047,4.7095,191.1,191.03,4.7109]
[1760970107543,5.00938137,191.18,190.99,5.00938137]
[1760970107746,5.00938137,191.2,191.02,5.00938137]
[1760970108646,5.00938137,191.2,191.01,5.00938137]
[1760970108834,5.00938137,191.17,191.01,5.00938137]
[1760970109849,5.00938137,191.17,190.97,5.00938137]
[1760970110440,4.71,191.08,191.01,4.7114]
[1760970110641,15.72,191.23,190.95,5.40882]
[1760970110642,5.00938137,191.13,190.95,5.40882]
[1760970110941,4.7105,191.06,190.95,5.40882]
[1760970112046,4.7105,191.06,190.99,4.7119]
[1760970115042,5.00938137,191.13,190.99,4.7119]
[1760970115238,5.00938137,191.13,191.0,4.7116]
[1760970115551,2.81,191.12,191.0,4.7116]
[1760970116843,2.81,191.12,190.95,5.40882]
[1760970116844,4.7102,191.07,191.01,4.7114]
[1760970118050,2.81,191.09,190.97,5.00938137]
[1760970119143,2.81,191.09,191.02,4.7112]
[1760970120450,2.81,191.15,191.0,4.7117]
[1760970120651,2.81,191.12,190.95,5.40882]
[1760970121251,2.81,191.04,190.95,5.40882]
[1760970121757,2.81,190.99,190.95,5.40882]
[1760970121956,2.81,191.07,190.95,5.40882]
[1760970122561,2.81,190.98,190.95,5.40882]
[1760970125667,2.81,190.98,190.95,10.12182]
[1760970126160,2.81,191.02,190.96,4.7126]
[1760970126364,2.81,191.02,190.95,5.40882]
[1760970127065,4.7106,191.05,190.95,5.40882]
[1760970127259,2.81,191.04,190.95,5.40882]
[1760970127459,4.7113,191.03,190.96,4.7127]
[1760970127660,2.81,191.02,190.96,4.7127]
[1760970128960,7.5214,191.02,190.96,4.7127]
[1760970129468,2.81,190.99,190.95,5.40882]
[1760970130265,7.5214,191.02,190.95,5.40882]
[1760970130465,2.81,191.01,190.95,5.40882]
[1760970130662,2.81,191.0,190.95,5.40882]
[1760970131270,2.81,190.98,190.95,5.40882]
[1760970132273,2.81,190.97,190.95,5.40882]
[1760970132669,3.85,190.96,190.85,43.86]
[1760970132867,2.81,190.95,190.81,8.27539271]
[1760970133267,2.81,191.0,190.84,4.7158]
[1760970133565,2.81,191.0,190.78,43.88]
[1760970133761,2.81,190.94,190.77,17.71019271]
[1760970133965,23.99539271,191.02,190.68,15.72]
[1760970133966,2.65,191.01,190.82,136.43155554]
[1760970134176,2.65,191.01,190.85,8.27539271]
[1760970134474,2.65,191.0,190.93,4.7134]
[1760970135065,7.362,191.0,190.93,4.7134]
[1760970135369,2.65,191.0,190.94,4.7131]
[1760970135569,2.65,191.0,190.86,43.92]
[1760970135765,4.7119,191.0,190.86,43.92]
[1760970135970,2.65,190.99,190.86,43.92]
[1760970136278,2.65,190.96,190.85,43.9]
[1760970136477,2.65,190.96,190.82,136.43155554]
[1760970136677,2.65,190.96,190.82,179.42]
[1760970136977,2.65,190.96,190.82,43.9]
[1760970137168,2.65,191.01,190.82,43.9]
[1760970137370,2.65,190.97,190.82,43.9]
[1760970137674,2.65,190.97,190.79,0.91169883]
[1760970137877,4.7131,190.95,190.87,4.715]
[1760970138079,2.65,190.94,190.87,4.715]
[1760970139978,2.65,190.94,190.88,4.7146]
[1760970141477,2.65,190.94,190.89,4.7144]
[1760970142373,2.65,190.94,190.87,4.7149]
[1760970144182,7.3635,190.94,190.87,4.7149]
[1760970144983,7.3635,190.94,190.88,4.7146]
[1760970145180,2.65,190.94,190.81,36.28]
[1760970145482,2.76,190.98,190.79,0.91169883]
[1760970145681,2.76,190.98,190.82,8.27539271]
[1760970146285,2.76,190.98,190.93,4.7134]
[1760970146481,2.76,190.98,190.83,9.4318]
[1760970146680,2.76,190.98,190.91,4.7138]
[1760970146885,2.76,190.98,190.84,43.88]
[1760970147385,2.76,190.98,190.85,43.88]
[1760970147590,2.76,191.03,190.87,9.4299]
[1760970147778,7.4711,191.03,190.94,4.7131]
[1760970147972,2.76,191.02,190.87,9.4299]
[1760970148381,2.76,191.02,190.88,43.9]
[1760970148885,2.76,191.02,190.96,4.7126]
[1760970150384,8.27539271,191.1,190.9,52.17539271]
[1760970150587,2.76,191.08,190.91,9.428]
[1760970150778,2.76,191.08,190.92,43.88]
[1760970151081,2.76,191.05,190.92,43.88]
[1760970151587,2.76,191.05,190.96,4.7126]
[1760970152479,4.7111,191.03,190.97,4.7124]
[1760970153379,7.4706,191.05,190.98,4.7121]
[1760970153580,2.76,191.05,190.91,43.86]
[1760970154485,2.76,191.09,190.94,8.27539271]
[1760970154879,2.76,191.09,190.95,43.86]
[1760970155481,2.76,191.09,190.96,43.86]
[1760970155677,7.4697,191.09,191.01,4.7113]
[1760970155889,2.76,191.08,191.01,4.7113]
[1760970157893,8.27539271,191.18,191.03,4.7109]
[1760970157894,7.4689,191.12,191.03,4.7109]
[1760970158096,2.76,191.11,190.98,8.27539271]
[1760970158596,2.76,191.11,190.99,43.84]
[1760970158787,2.76,191.11,191.0,43.84]
[1760970159190,2.76,191.1,191.02,4.7112]
[1760970159492,2.76,191.1,190.99,43.84]
[1760970159887,2.76,191.1,190.98,8.27539271]
[1760970160084,2.76,191.1,190.99,43.84]
[1760970161089,2.76,191.1,191.03,4.7109]
[1760970161697,2.76,191.1,191.04,4.7106]
[1760970161894,7.4684,191.14,190.99,43.84]
[1760970162298,7.4684,191.14,191.07,4.71]
[1760970163300,2.76,191.14,191.08,4.7096]
[1760970163892,2.76,191.14,191.06,4.7102]
[1760970164294,2.76,191.12,191.06,4.7102]
[1760970164892,2.76,191.12,191.04,4.7107]
[1760970165106,2.76,191.12,191.02,43.84]
[1760970165312,2.76,191.12,191.02,43.82]
[1760970165898,2.76,191.12,191.05,4.7105]
[1760970168702,2.76,191.11,191.03,4.711]
[1760970170208,2.7,191.09,191.03,4.711]
[1760970171709,2.7,191.09,191.01,4.7115]
[1760970171710,2.7,191.08,191.01,4.7115]
[1760970171910,2.7,191.08,190.97,8.27539271]
[1760970172208,2.7,191.08,190.97,32.07539271]
[1760970172404,2.7,191.08,190.97,52.09539271]
[1760970173603,2.7,191.08,190.97,8.27539271]
[1760970173803,2.7,191.11,190.97,8.27539271]
[1760970174005,33.02770798,191.2,190.84,8.27539271]
[1760970174006,2.7,191.17,191.01,8.27539271]
[1760970174206,2.7,191.17,191.02,14.08]
[1760970174404,2.7,191.17,191.01,27.45539271]
[1760970174698,2.7,191.17,190.99,23.24]
[1760970174903,2.7,191.17,190.99,25.36]
[1760970175410,2.7,191.09,191.03,4.711]
[1760970175809,15.72,191.16,191.01,4.7114]
[1760970176010,2.7,191.15,191.01,4.7114]
[1760970176211,8.27539271,191.15,191.01,4.7114]
[1760970176412,2.7,191.14,191.01,4.7114]
[1760970177010,4.7098,191.09,191.01,4.7114]
[1760970177215,2.7,191.08,191.01,4.7114]
[1760970179114,2.7,191.08,190.95,39.22]
[1760970179508,2.7,191.08,190.93,17.70209271]
[1760970179715,2.7,191.08,190.95,43.82]
[1760970179903,2.7,191.08,191.01,4.7114]
[1760970180408,7.4099,191.08,191.01,4.7114]
[1760970180615,2.7,191.07,191.01,4.7114]
[1760970180813,2.7,191.07,190.85,135.6]
[1760970180814,2.7,191.07,190.89,8.27539271]
[1760970181312,2.7,191.06,190.9,43.82]
[1760970181510,2.7,191.06,190.95,4.7129]
[1760970181705,4.7117,191.01,190.95,4.7129]
[1760970181911,2.7,191.0,190.9,43.82]
[1760970182111,2.7,191.0,190.89,43.82]
[1760970182313,2.7,191.0,190.85,143.87539271]
[1760970182810,2.7,191.0,190.86,43.82]
[1760970182811,4.7119,191.0,190.86,43.82]
[1760970183012,2.7,190.99,190.87,43.82]
[1760970183211,2.7,190.99,190.85,143.87539271]
[1760970183712,2.7,190.99,190.86,43.82]
[1760970183912,2.7,190.99,190.87,43.82]
[1760970184114,2.7,190.99,190.85,143.87539271]
[1760970184314,2.7,190.99,190.86,43.82]
[1760970184510,2.7,190.99,190.85,143.87539271]
[1760970184511,2.7,191.06,190.85,143.87539271]
[1760970184813,5.02249086,191.18,190.94,5.02249086]
[1760970185015,2.7,191.1,191.03,4.7109]
[1760970185514,2.7,191.1,190.98,5.02249086]
[1760970185515,2.7,191.1,190.99,8.0]
[1760970185710,2.7,191.07,191.01,4.7114]
[1760970186302,2.7,191.07,190.94,5.02249086]
[1760970186707,2.7,191.07,190.95,43.82]
[1760970186914,2.7,191.07,190.94,5.02249086]
[1760970187514,2.7,191.07,190.95,43.82]
[1760970187814,2.7,191.07,190.96,43.82]
[1760970188015,2.7,191.07,190.97,43.82]
[1760970188206,2.7,191.07,190.98,43.82]
[1760970188612,2.7,191.07,191.03,4.7109]
[1760970188811,2.7,191.07,190.95,9.4257]
[1760970189417,2.7,191.07,190.96,43.82]
[1760970189611,2.7,191.12,190.98,5.02249086]
[1760970189811,2.7,191.12,190.99,43.82]
[1760970190013,2.7,191.12,191.0,43.82]
[1760970190409,2.7,191.12,190.98,5.02249086]
[1760970190608,2.7,191.12,190.99,43.82]
[1760970191008,2.7,191.12,190.98,5.02249086]
[1760970191212,2.7,191.12,190.99,43.82]
[1760970191611,2.7,191.12,191.06,4.7101]
[1760970192116,2.7,191.12,191.01,43.82]
[1760970192315,2.7,191.12,190.98,5.02249086]
[1760970192518,2.7,191.12,190.99,19.6]
[1760970192719,2.7,191.12,190.98,5.02249086]
[1760970193118,2.7,191.12,191.05,4.7104]
[1760970194619,2.84,191.11,191.05,4.7104]
[1760970194922,2.84,191.09,191.05,4.7104]
[1760970196321,2.84,191.12,191.02,21.38]
[1760970196507,2.84,191.12,191.06,2.19109425]
[1760970196714,2.84,191.12,191.04,2.19109425]
[1760970197521,2.84,191.12,191.03,2.19109425]
[1760970198024,2.84,191.12,191.06,4.7101]
[1760970199319,2.84,191.12,191.04,2.19109425]
[1760970199521,4.90109425,191.11,191.02,2.19109425]
[1760970199712,2.71,191.1,191.0,19.09109425]
[1760970199916,2.71,191.1,191.03,4.7109]
[1760970200320,2.71,191.1,191.02,2.19109425]
[1760970200824,2.71,191.1,190.96,9.4255]
[1760970201026,2.71,191.1,191.03,2.19109425]
[1760970201215,2.71,191.1,191.01,2.19109425]
[1760970201819,7.4195,191.1,191.03,4.7108]
[1760970202126,2.71,191.09,191.03,4.7108]
[1760970202628,2.71,191.08,191.03,4.7108]
[1760970202822,2.71,191.08,191.01,4.7114]
[1760970203017,2.71,191.08,190.99,2.19109425]
[1760970203220,2.71,191.08,191.01,2.19109425]
[1760970203420,4.7091,191.11,191.03,2.19109425]
[1760970203725,7.4191,191.11,190.99,16.9]
[1760970203932,7.4191,191.11,191.03,2.19109425]
[1760970204123,7.4191,191.11,191.04,4.7106]
[1760970204532,9.61019425,191.11,191.04,4.7106]
[1760970204721,2.71,191.1,191.04,4.7106]
[1760970205630,2.71,191.1,191.02,2.19109425]
[1760970205631,2.71,191.09,191.02,4.7111]
[1760970206032,2.71,191.08,191.02,4.7111]
[1760970208032,4.7102,191.07,191.0,4.7116]
[1760970208225,2.19109425,191.02,190.93,2.19109425]
[1760970208426,4.90109425,191.02,190.93,2.19109425]
[1760970209934,4.90109425,191.02,190.96,4.7127]
[1760970210327,2.71,191.02,190.93,2.19109425]
[1760970210526,4.90109425,191.06,190.97,2.19109425]
[1760970210725,2.71,191.06,190.99,2.19109425]
[1760970211530,4.90109425,191.06,191.0,4.7116]
[1760970211931,2.71,191.06,190.97,2.19109425]
[1760970212637,2.71,191.06,190.99,2.19109425]
[1760970213638,2.19109425,191.08,190.99,2.19109425]
[1760970213932,2.71,191.07,190.99,2.19109425]
[1760970215134,2.71,191.07,191.01,2.19109425]
[1760970216335,2.71,191.07,191.05,4.7104]
[1760970216536,4.90109425,191.12,191.03,2.19109425]
[1760970216844,2.71,191.11,191.05,2.19109425]
[1760970217140,2.71,191.11,190.98,9.4245]
[1760970217439,2.71,191.09,191.01,2.19109425]
[1760970217740,2.71,191.09,191.02,2.19109425]
[1760970217936,2.71,191.09,191.0,2.19109425]
[1760970218240,2.71,191.07,191.0,2.19109425]
[1760970218447,2.71,191.07,190.98,2.19109425]
[1760970220034,2.71,191.07,191.01,4.7114]
[1760970220432,2.71,191.03,190.94,2.19109425]
[1760970220831,2.71,191.03,190.9,22.47713201]
[1760970221044,2.71,191.03,190.93,2.19109425]
[1760970221045,4.90109425,191.03,190.93,2.19109425]
[1760970221245,2.19109425,191.03,190.93,2.19109425]
[1760970221446,2.71,191.02,190.93,2.19109425]
[1760970221647,2.71,191.02,190.98,4.7121]
[1760970223050,2.19109425,191.05,190.99,4.7119]
[1760970223340,2.71,191.06,190.99,2.19109425]
[1760970225943,2.71,191.06,191.02,4.7111]
[1760970227948,2.71,191.06,191.0,4.7117]
[1760970228650,2.71,191.06,190.99,2.19109425]
[1760970229152,2.71,191.06,191.02,4.7111]
[1760970230253,2.71,191.06,191.03,4.7109]
[1760970230442,2.78,191.1,191.03,4.7109]
[1760970231652,2.78,191.09,191.03,4.7109]
[1760970232349,2.78,191.06,190.93,13.04853201]
[1760970232552,2.78,191.06,190.99,2.19109425]
[1760970233349,2.78,191.06,191.0,4.7117]
[1760970234253,2.78,191.06,190.99,2.19109425]
[1760970234856,2.78,191.06,191.01,6.90239425]
[1760970235052,2.78,191.06,191.01,2.19109425]
[1760970236046,2.78,191.06,191.03,2.19109425]
[1760970236945,7.4894,191.1,191.04,4.7106]
[1760970237254,2.78,191.1,191.04,4.7106]
[1760970238352,2.78,191.1,191.05,6.90149425]
[1760970239754,2.78,191.1,191.05,4.7104]
[1760970241154,2.78,191.09,191.04,2.19109425]
[1760970241755,3.95092008,191.16,191.06,2.19109425]
[1760970241958,2.78,191.14,191.06,2.19109425]
[1760970242163,2.78,191.14,191.08,2.19109425]
[1760970242351,2.78,191.14,191.06,2.19109425]
[1760970242949,2.19109425,191.16,191.06,6.90119425]
[1760970243160,2.78,191.13,191.06,6.90119425]
[1760970243563,2.78,191.12,191.06,6.90119425]
[1760970244161,2.78,191.12,191.07,4.7099]
[1760970244361,2.78,191.12,191.08,2.19109425]
[1760970244563,2.78,191.16,191.1,2.19109425]
[1760970244754,2.78,191.16,190.93,32.03066501]
[1760970244755,2.78,191.16,191.12,2.19109425]
[1760970244956,2.78,191.2,191.14,2.19109425]
[1760970245162,2.78,191.2,191.04,13.04853201]
[1760970245363,2.78,191.09,191.01,2.19109425]
[1760970245552,2.78,191.09,191.02,4.7112]
[1760970246360,2.78,191.09,191.0,6.90279425]
[1760970246658,2.19109425,191.1,190.94,13.04853201]
[1760970246659,2.19109425,191.06,190.96,2.19109425]
[1760970246863,2.78,191.04,190.92,13.04853201]
[1760970247260,2.78,191.04,190.92,57.04853201]
[1760970247761,2.78,191.03,190.92,13.04853201]
[1760970247963,2.78,191.03,190.9,13.04853201]
[1760970248163,2.78,190.99,190.9,13.04853201]
[1760970249359,2.78,190.99,190.92,4.7135]
[1760970249559,2.78,190.99,190.9,13.04853201]
[1760970249560,6.20500813,191.03,190.9,13.04853201]
[1760970249962,2.78,191.02,190.9,13.04853201]
[1760970250470,2.78,191.02,190.93,4.7133]
[1760970251769,2.78,191.01,190.93,4.7133]
[1760970254570,2.78,191.01,190.95,4.7129]
[1760970255469,2.68,191.05,190.93,3.42500813]
[1760970255672,2.68,191.05,190.96,3.42500813]
[1760970256263,2.68,191.05,190.93,35.06500813]
[1760970256462,2.68,191.05,190.93,3.42500813]
[1760970256670,2.68,191.03,190.95,4.7129]
[1760970257070,2.68,191.03,190.9,16.47354014]
[1760970257269,2.68,191.03,190.9,52.59354014]
[1760970257573,2.68,191.03,190.9,16.47354014]
[1760970257764,2.68,191.03,190.9,49.43354014]
[1760970257966,4.7112,191.03,190.93,4.7134]
[1760970258166,2.68,191.02,190.93,4.7134]
[1760970259071,2.9,191.01,190.93,4.7134]
[1760970259668,2.9,191.04,190.93,3.42500813]
[1760970259975,2.9,191.02,190.93,3.42500813]
[1760970260577,2.9,191.01,190.94,4.713]
[1760970260875,2.9,191.01,190.89,13.04853201]
[1760970261072,2.9,191.01,190.9,3.42500813]
[1760970261475,2.9,190.99,190.92,4.7136]
[1760970261776,2.9,190.99,190.9,3.42500813]
[1760970262475,2.9,190.99,190.93,4.7133]
[1760970262667,2.9,190.99,190.9,3.42500813]
[1760970262875,2.9,190.99,190.89,13.04853201]
[1760970263076,2.9,190.99,190.88,3.42500813]
[1760970263077,2.9,190.98,190.9,4.7141]
[1760970263977,4.7124,190.98,190.9,4.7141]
[1760970264169,2.9,190.97,190.9,4.7141]
[1760970265380,2.9,190.97,190.88,3.42500813]
[1760970265573,2.9,190.97,190.91,3.42500813]
[1760970267068,2.9,190.97,190.92,4.7136]
[1760970267884,2.9,191.01,190.94,3.42500813]
[1760970268769,2.9,191.01,190.94,8.13810813]
[1760970269277,2.9,191.09,190.97,3.42500813]
[1760970270279,2.9,191.04,190.97,8.13740813]
[1760970271582,2.9,191.03,190.97,8.13740813]
[1760970272281,2.9,191.03,190.99,4.7118]
[1760970273082,2.9,191.07,191.0,4.7116]
[1760970274985,2.9,191.07,191.01,4.7114]
[1760970275176,2.9,191.07,190.94,3.42500813]
[1760970275389,2.9,191.07,190.97,3.42500813]
[1760970275782,2.9,191.07,190.97,34.88500813]
[1760970276089,2.9,191.07,190.97,47.36500813]
[1760970276288,2.9,191.07,190.97,3.42500813]
[1760970276489,2.9,191.07,190.97,47.36500813]
[1760970276790,2.9,191.07,191.01,4.7114]
[1760970277287,2.9,191.07,190.97,3.42500813]
[1760970277490,2.9,191.07,191.0,4.7116]
[1760970277784,2.9,191.07,190.97,3.42500813]
[1760970278381,2.9,191.07,190.97,34.84500813]
[1760970278784,2.9,191.07,190.99,4.7119]
[1760970279286,2.9,191.07,190.97,3.42500813]
[1760970279287,2.9,191.04,190.97,4.7124]
[1760970280988,2.9,191.03,190.97,4.7124]
[1760970281289,2.9,191.03,190.91,43.92]
[1760970281493,3.42500813,191.08,190.91,43.92]
[1760970281494,4.7101,191.07,190.93,3.42500813]
[1760970281685,7.6101,191.07,191.0,4.7116]
[1760970281989,2.9,191.07,190.96,3.42500813]
[1760970282682,2.9,191.07,190.96,34.88500813]
[1760970282988,2.9,191.1,190.97,43.94]
[1760970283194,2.9,191.1,191.0,3.42500813]
[1760970283893,2.9,191.09,191.0,3.42500813]
[1760970285079,2.9,191.09,191.04,4.7106]
[1760970286098,4.7087,191.13,191.03,3.42500813]
[1760970286099,7.6087,191.13,191.03,3.42500813]
[1760970286285,4.7087,191.13,191.03,3.42500813]
[1760970286480,2.9,191.12,191.0,33.42]
[1760970286696,2.9,191.12,191.05,4.7104]
[1760970287196,2.9,191.12,191.01,42.22500813]
[1760970287496,2.9,191.12,191.01,3.42500813]
[1760970287695,2.9,191.12,191.03,3.42500813]
[1760970288700,2.9,191.12,191.02,3.42500813]
[1760970288999,2.9,191.12,191.07,4.7098]
[1760970289499,2.9,191.12,191.04,4.7105]
[1760970289689,2.9,191.12,191.0,3.42500813]
[1760970289885,2.9,191.12,191.0,43.9]
[1760970290101,2.9,191.12,191.08,4.7096]
[1760970293705,2.9,191.12,191.09,4.7094]
[1760970297603,2.9,191.12,191.07,4.7099]
[1760970299309,3.42500813,191.15,191.01,25.18500813]
[1760970299498,3.42500813,191.15,191.02,38.8]
[1760970299499,6.15500813,191.15,191.02,38.8]
[1760970299705,2.73,191.14,191.02,3.42500813]
[1760970299901,2.73,191.14,191.02,24.64500813]
[1760970300108,2.73,191.14,191.03,9.4219]
[1760970300404,2.73,191.17,191.05,3.42500813]
[1760970300610,2.73,191.17,191.03,9.4219]
[1760970300813,2.73,191.16,191.04,43.86]
[1760970301006,2.73,191.16,191.03,12.84690813]
[1760970301207,2.73,191.16,191.03,50.38690813]
[1760970301515,2.73,191.15,191.09,4.7094]
[1760970302209,2.73,191.15,191.1,4.7092]
[1760970302614,2.73,191.15,191.08,4.7096]
[1760970302811,2.73,191.14,191.08,4.7096]
[1760970303218,2.73,191.14,190.99,9.424]
[1760970303403,6.15500813,191.14,191.01,39.14]
[1760970303603,2.73,191.14,191.01,43.84]
[1760970303815,2.73,191.14,190.99,12.84900813]
[1760970304117,2.73,191.14,191.0,43.84]
[1760970304314,2.73,191.14,190.99,12.84900813]
[1760970304515,2.73,191.14,190.99,9.424]
[1760970304716,4.7087,191.13,191.06,4.7101]
[1760970305620,7.4387,191.13,191.06,4.7101]
[1760970306711,2.73,191.13,191.07,4.7099]
[1760970307117,2.73,191.13,191.02,39.86]
[1760970307317,2.73,191.13,191.05,4.7104]
[1760970307318,2.73,191.12,191.05,4.7104]
[1760970307724,2.73,191.12,191.02,43.82]
[1760970307725,2.73,191.06,190.9,13.03595884]
[1760970308020,3.42500813,191.1,190.88,4.7146]
[1760970308021,2.73,190.99,190.88,4.7146]
[1760970308221,2.73,190.99,190.86,41.67595884]
[1760970308412,2.73,191.0,190.88,4.7147]
[1760970308613,2.73,191.0,190.87,13.03595884]
[1760970308916,2.73,191.0,190.82,16.29494855]
[1760970308917,2.19306152,191.03,190.92,2.19306152]
[1760970309126,7.441,191.04,190.94,2.19306152]
[1760970309323,2.73,191.04,190.94,2.19306152]
[1760970309723,2.73,191.04,190.96,4.7127]
[1760970309921,2.73,191.02,190.93,32.4]
[1760970310121,2.73,191.02,190.92,2.19306152]
[1760970310423,4.80140705,191.17,190.81,9.4328]
[1760970310424,4.92306152,190.99,190.88,15.22902036]
[1760970310726,2.73,190.97,190.88,2.19306152]
[1760970311023,2.19306152,190.98,190.88,2.19306152]
[1760970311215,2.19306152,190.98,190.88,41.83306152]
[1760970311910,2.19306152,190.98,190.88,2.19306152]
[1760970312112,2.19306152,191.0,190.9,4.7142]
[1760970312420,2.19306152,191.0,190.9,2.19306152]
[1760970312726,2.19306152,191.0,190.9,46.23306152]
[1760970313024,2.19306152,191.0,190.9,2.19306152]
[1760970313526,4.92306152,191.0,190.9,2.19306152]
[1760970313716,4.92306152,191.0,190.9,32.89306152]
[1760970313917,2.19306152,190.98,190.92,4.7137]
[1760970314123,2.19306152,190.98,190.89,35.18]
[1760970314318,2.19306152,190.98,190.88,2.19306152]
[1760970314625,4.90306152,190.98,190.88,2.19306152]
[1760970315230,2.71,190.98,190.9,2.19306152]
[1760970315434,2.19306152,191.0,190.9,2.19306152]
[1760970315723,15.7,191.1,190.94,4.7132]
[1760970315724,4.90306152,191.02,190.94,4.7132]
[1760970316923,4.90306152,191.0,190.92,44.02]
[1760970317123,2.71,190.99,190.9,46.21306152]
[1760970317321,2.71,190.99,190.9,2.19306152]
[1760970317625,2.19306152,190.96,190.87,13.03595884]
[1760970317829,2.19306152,190.96,190.88,32.32]
[1760970318022,2.19306152,190.96,190.9,4.7142]
[1760970319623,2.62,190.95,190.87,4.7148]
[1760970319828,2.62,190.95,190.87,44.02]
[1760970320022,2.62,190.95,190.86,15.22902036]
[1760970320425,2.62,190.95,190.86,2.19306152]
[1760970320718,2.62,190.95,190.87,46.21306152]
[1760970320923,2.62,190.95,190.87,2.19306152]
[1760970321434,2.62,190.95,190.87,43.45306152]
[1760970321630,2.62,190.95,190.87,2.19306152]
[1760970321838,2.19306152,190.96,190.87,2.19306152]
[1760970322135,2.19306152,190.96,190.89,4.7143]
[1760970322628,2.19306152,190.98,190.9,6.90706152]
[1760970323135,4.81306152,190.98,190.9,6.90706152]
[1760970323337,4.81306152,190.98,190.9,4.714]
[1760970323630,4.81306152,190.98,190.9,6.90706152]
[1760970323936,2.62,190.97,190.9,6.90706152]
[1760970324729,2.62,190.97,190.9,4.714]
[1760970325031,2.62,190.97,190.88,6.90766152]
[1760970325236,2.62,190.95,190.88,6.90766152]
[1760970325439,2.62,190.95,190.88,4.7146]
[1760970326032,2.19306152,190.94,190.85,4.7153]
[1760970326234,2.62,190.93,190.85,6.90836152]
[1760970326929,2.62,190.93,190.86,4.7151]
[1760970327238,2.62,190.93,190.85,2.19306152]
[1760970327440,2.62,190.93,190.87,4.7148]
[1760970327739,2.62,190.93,190.87,2.19306152]
[1760970328139,2.62,190.97,190.89,2.19306152]
[1760970328339,2.62,190.97,190.92,2.19306152]
[1760970328735,2.62,190.97,190.83,13.03595884]